[Event "GER-ch Youth-ODJM 2022"]
[Site "Willingen"]
[Date "2022.06.05"]
[Round "2.18"]
[White "Sabirov, Ramil"]
[Black "Kamp, Aaron"]
[Result "1-0"]
[ECO "A40"]
[WhiteElo "2130"]
[BlackElo "1790"]
[Annotator "TA"]
[PlyCount "115"]
[EventDate "2022.06.05"]
[EventType "swiss"]
[EventRounds "9"]
[EventCountry "GER"]
[SourceTitle "playchess.com"]
[Source "ChessBase"]
[SourceQuality "1"]
[TimeControl "40/4500+30:900+30"]

{[%evp 10,115,80,55,64,75,91,79,87,79,108,85,86,81,66,76,71,68,64,75,71,79,61,68,98,73,136,143,222,198,194,186,186,179,175,181,172,0,0,-89,-322,-104,-96,-96,-119,-138,-113,-259,-224,-308,-300,-284,-238,-221,-220,-1222,-1210,-897,-691,-623,-614,-535,529,467,919,983,1797,1775,1615,1669,12827,2135,1836,743,12840,12840,12841,12840,12839,12834,12841,12842,12842,12843,12843,12843,12844,12844,12845,12845,12845,12845,12845,12845,12847,12846,12846,12847,12849,12849,12850,12848,12850,12848,12850,12849,12850,666]} 1. d4 {[%emt 0:00:00]} b5 {[%emt 0:00:00]} 2. e4 {[%emt 0:00:00]} Bb7 {[%emt 0:00:00]} 3. Bxb5 {[%emt 0:00:00]} Bxe4 {[%emt 0:00:00]} 4. Nf3 {[%emt 0:00:00]} Nf6 {[%emt 0:00:00]} 5. O-O {[%emt 0:00:00]} e6 {[%emt 0:00:00]} 6. c4 {[%emt 0:08:23]} Be7 {[%emt 0:00:00] A40: Unusual replies to 1 d4.} 7. Nc3 {[%emt 0:01:29]} c6 {[%emt 0:00:00]} 8. Ba4 {[%emt 0:08:44]} O-O {[%emt 0:01:31] [#] White is better.} 9. Bf4 $146 {[%emt 0:11:03]} ({Predecessor:} 9. Nxe4 Nxe4 10. d5 Qa5 11. dxe6 fxe6 12. Bc2 d5 13. Qe2 Bf6 14. Bxe4 dxe4 15. Qxe4 {1-0 (47) Scarella,E (2365)-Bulcourf,C (2146) Villa Ballester 2008}) 9... Qa5 {[%emt 0:13:25]} 10. Ne5 {[%emt 0:06:15]} d6 {[%emt 0:05:14]} 11. Nxe4 {[%emt 0:05:10]} (11. Ng4 {looks sharper.} Bg6 12. Nxf6+ Bxf6 13. Bxd6 Rd8 14. c5) 11... dxe5 {[%emt 0:01:24]} 12. Nxf6+ {[%emt 0:00:46]} Bxf6 {[%emt 0:00:55]} 13. dxe5 {[%emt 0:01:51]} Bxe5 {[%emt 0:03:13]} 14. b4 {[%emt 0:03:16]} Qc7 {[%emt 0:00:22]} 15. Bxe5 {[%emt 0:00:21]} Qxe5 {[%emt 0:00:09]} 16. Qf3 {[%emt 0:13:35]} Qc7 {[%emt 0:13:23]} 17. Rfd1 $36 {[%emt 0:02:39][%mdl 2048] Black is under strong pressure.} Rc8 {[%emt 0:01:45]} ({Black should try} 17... a6) 18. c5 $16 {[%emt 0:09:17] White is more active.} Nd7 {[%emt 0:09:21]} (18... h6 $16 19. Rab1 Nd7) 19. Rd6 $18 {[%emt 0:04:41]} Rab8 {[%emt 0:07:45]} 20. Qd1 {[%emt 0:03:48]} ({But not} 20. Bxc6 $2 Ne5 21. Qd1 Nxc6 $19) (20. Qxc6 $6 Qxc6 21. Bxc6 Ne5 $14) 20... Nf6 {[%emt 0:06:39]} 21. Rxc6 {[%emt 0:00:14]} Qf4 {[%emt 0:01:17]} 22. Rxc8+ {[%emt 0:00:31]} Rxc8 {[%emt 0:00:15] [#]} 23. a3 $2 {[%emt 0:02:59]} ({And not} 23. Bd7 Rd8 24. g3 Qc7 $11) ({White has to play} 23. Qe1 $1 $18) 23... Ng4 $11 {[%emt 0:00:33]} 24. Ra2 {[%emt 0:01:43]} (24. h3 $11 {keeps the balance.} Qh2+ 25. Kf1 Qh1+ 26. Ke2 Qxg2 27. hxg4 Qe4+ 28. Kf1 Qh1+ 29. Ke2 Qe4+ 30. Kf1 Qh1+ 31. Ke2 Qe4+) 24... Qxh2+ $17 {[%emt 0:00:39]} 25. Kf1 {[%emt 0:00:03]} Qh1+ {[%emt 0:00:30]} 26. Ke2 {[%emt 0:00:03]} Qxg2 {[%emt 0:00:14]} 27. Qd4 {[%emt 0:01:17]} e5 {[%emt 0:01:16][%cal Be6e5,Be5e4][%mdl 32]} 28. Qd7 {[%emt 0:00:02]} (28. Bc6 $17 Qxc6 29. Qxg4) 28... Qxf2+ {[%emt 0:00:55]} 29. Kd3 {[%emt 0:00:51][%cal Rd7c8]} e4+ {[%emt 0:02:28]} 30. Kc3 {[%emt 0:00:03][%cal Rd7c8]} Qf6+ {[%emt 0:03:53]} 31. Qd4 {[%emt 0:01:17]} Qf3+ {[%emt 0:04:31]} 32. Kc4 $2 {[%emt 0:00:18] [#]} (32. Kb2) 32... Ne5+ $1 $19 {[%emt 0:01:34][%mdl 512]} 33. Kb5 {[%emt 0:00:09]} Qf1+ {[%emt 0:04:49]} 34. Ka5 {[%emt 0:00:20][%cal Bb5a5,Ba5a6,Ba6b7,Bb7a7][%mdl 32]} Nc4+ {[%emt 0:00:29]} 35. Ka6 {[%emt 0:00:36] And now Bb5 would win.} Nxa3+ {[%emt 0:02:13][%mdl 8192] [#]} (35... Nd6+ $1 $19 {and all is fine.} 36. b5 Rc6+ 37. Ka5 Nb7+ 38. Kb4 Rxc5) 36. Kb7 $1 $18 {[%emt 0:00:21] White now steadily converts the win. White is clearly winning.} Qh3 {[%emt 0:02:03]} (36... Qc4 $2 37. Qxc4 Nxc4 38. Kxc8) (36... Rf8 $142) 37. Bd7 {[%emt 0:00:26]} Rd8 {[%emt 0:00:24]} 38. Bxh3 {[%emt 0:01:03][%cal Rd4d8][%mdl 64] Discovered Attack} Rxd4 {[%emt 0:00:09]} 39. Rxa3 {[%emt 0:00:06]} Rxb4+ {[%emt 0:00:25]} 40. Kxa7 {[%emt 0:01:08][%mdl 4096] Endgame aiming for c6. KRB-KR} Rc4 {[%emt 0:00:47]} 41. Kb6 {[%emt 0:15:29]} (41. c6 $142 f5 42. Kb6 (42. Bxf5 Rxc6 43. Bxe4 Rc1 $11)) 41... g5 {[%emt 0:00:00]} 42. c6 {[%emt 0:00:00]} h5 {[%emt 0:00:00]} 43. Bf5 {[%emt 0:00:00]} Kg7 {[%emt 0:00:00]} 44. c7 {[%emt 0:00:00]} Kf6 {[%emt 0:00:00]} 45. Ra5 {[%emt 0:00:00]} e3 {[%emt 0:00:00]} 46. c8=Q {[%emt 0:00:00]} Rxc8 {[%emt 0:00:00]} 47. Bxc8 {[%emt 0:00:00]} e2 {[%emt 0:00:00]} 48. Rf5+ {[%emt 0:00:00]} Kg6 {[%emt 0:00:00]} 49. Re5 {[%emt 0:00:00]} g4 {[%emt 0:00:00]} 50. Kc5 {[%emt 0:00:00]} g3 {[%emt 0:00:00]} 51. Bh3 {[%emt 0:00:00]} f5 {[%emt 0:00:00]} 52. Rxe2 {[%emt 0:00:00]} Kg5 {[%emt 0:01:13]} 53. Kd4 {[%emt 0:00:00]} f4 {[%emt 0:00:51]} 54. Ke4 {[%emt 0:00:00]} Kh4 {[%emt 0:00:18]} 55. Bg2 {[%emt 0:00:00] White threatens Kf5 and mate.} Kg4 {[%emt 0:01:49]} 56. Ra2 {[%emt 0:00:00]} h4 {[%emt 0:00:28]} 57. Ra8 {[%emt 0:00:00] Intending Rg8+ and mate.} f3 {[%emt 0:00:40]} 58. Rg8+ {[%emt 0:00:00] Weighted Error Value: White=0.47/Black=0.53} 1-0

[Event "GER-ch Youth-ODJM 2022"]
[Site "Willingen"]
[Date "2022.06.05"]
[Round "2.19"]
[White "Kliashtornyi, Arkadii"]
[Black "Savchenko, Daniel"]
[Result "0-1"]
[ECO "D02"]
[WhiteElo "1755"]
[BlackElo "2134"]
[Annotator "TA"]
[PlyCount "82"]
[EventDate "2022.06.05"]
[EventType "swiss"]
[EventRounds "9"]
[EventCountry "GER"]
[SourceTitle "playchess.com"]
[Source "ChessBase"]
[SourceQuality "1"]
[TimeControl "40/4500+30:900+30"]

{[%evp 17,82,28,37,22,34,20,18,22,25,21,23,10,12,14,39,41,27,28,28,18,41,29,29,26,70,14,15,-36,-17,-36,142,0,103,27,39,61,58,0,0,-164,-152,-193,-193,-418,-335,-626,-595,-517,-507,-29969,-602,-593,-559,-568,-558,-630,-553,-29980,-29981,-29980,-1650,-29980,-29980,-29983,-29984,-29983,-29980]} 1. d4 {[%emt 0:00:00]} d5 {[%emt 0:00:00]} 2. Nf3 {[%emt 0:00:00]} Nf6 {[%emt 0:00:00]} 3. g3 {[%emt 0:00:00]} e6 {[%emt 0:00:00]} 4. Bg2 {[%emt 0:00:00]} Be7 {[%emt 0:00:00]} 5. c4 {[%emt 0:00:00]} c6 {[%emt 0:00:00]} 6. O-O {[%emt 0:00:00]} O-O {[%emt 0:00:00]} 7. Qc2 {[%emt 0:00:00]} b6 {[%emt 0:00:00]} 8. Nbd2 {[%emt 0:00:00]} Nbd7 {[%emt 0:00:00]} 9. e4 {[%emt 0:00:00][%cal Be2e4,Be4e5][%mdl 32]} Ba6 {[%emt 0:00:00] 9...dxc4 is the modern continuation.} 10. e5 {[%emt 0:00:00] E09: Closed Catalan: Main Line: 7 Qc2 c6 8 Nbd2.} Ne8 {[%emt 0:00:00]} 11. Re1 {[%emt 0:00:00]} Rc8 {[%emt 0:00:00]} 12. cxd5 {[%emt 0:01:35] The position is equal.} cxd5 {[%emt 0:00:00]} 13. Qb1 {[%emt 0:02:17]} Nb8 {[%emt 0:00:00][%cal Bd7b8,Bb8c6,Bc6a5,Ba5c4][%mdl 32]} 14. Nf1 {[%emt 0:02:09]} Nc6 {[%emt 0:00:00] [#]} 15. a3 $146 {[%emt 0:01:23][%cal Ba2a3,Ba3a4,Ba4b5][%mdl 32] Against Nb4} ({Predecessor:} 15. Bd2 Nc7 16. Ne3 Qd7 17. h4 h6 18. Ng4 h5 19. Ne3 Nb5 20. Nc2 {0-1 (55) Renman,N-Radulov,I (2515) Stockholm 1976}) 15... Na5 {[%emt 0:03:41]} 16. b4 {[%emt 0:04:31]} Nc4 {[%emt 0:01:22]} 17. b5 {[%emt 0:06:45]} Bb7 {[%emt 0:00:07]} 18. Ne3 {[%emt 0:00:39]} a6 {[%emt 0:07:26]} 19. a4 {[%emt 0:03:34]} axb5 {[%emt 0:03:12]} 20. axb5 {[%emt 0:00:08]} Ra8 {[%emt 0:00:35] [#]} 21. Rxa8 {[%emt 0:09:18]} (21. Ng5 $1 $14 Bxg5 22. Nxc4) 21... Qxa8 $11 {[%emt 0:02:21]} 22. Bf1 {[%emt 0:20:23]} ({White should play} 22. Re2 $11) 22... Qa4 $15 {[%emt 0:14:02]} 23. Bd3 {[%emt 0:02:31]} g6 $2 {[%emt 0:06:39]} (23... h6 $15 {stays ahead.}) 24. h4 {[%emt 0:03:24]} ({White must play} 24. Ng4 $1 $16) 24... h5 {[%emt 0:15:27] [#]} (24... Qb4 $11 {keeps the balance.}) 25. g4 {[%emt 0:12:57]} (25. Ng2 $1 $16) 25... Nxe3 {[%emt 0:03:28]} 26. Bxe3 {[%emt 0:00:02] And now gxh5 would win.} hxg4 {[%emt 0:01:21]} 27. Ng5 {[%emt 0:02:19]} (27. Nh2 $1 $14) 27... Ng7 $11 {[%emt 0:07:13]} 28. Bxg6 $2 {[%emt 0:02:52]} fxg6 $19 {[%emt 0:02:18]} 29. Qxg6 {[%emt 0:00:02][%csl Gg5][%cal Rg6h7]} Bxg5 {[%emt 0:00:34]} 30. Bxg5 {[%emt 0:00:57]} (30. Qxg5 Qc2 31. Qxg4) 30... g3 {[%emt 0:06:01]} ({Wrong is} 30... Rf7 $2 31. Be3 $19) 31. Bf6 $2 {[%emt 0:02:07]} (31. Be3 gxf2+ 32. Bxf2) 31... gxf2+ {[%emt 0:01:10]} 32. Kh2 {[%emt 0:00:15][%csl Gf6][%cal Rg6g7]} Rf7 {[%emt 0:00:11]} 33. Bxg7 {[%emt 0:01:35]} (33. Rf1 $19 Qxd4 34. Qg3) 33... f1=N+ {[%emt 0:04:01]} (33... fxe1=Q 34. Bh6+ Kh8 35. Bg7+ Rxg7 36. Qh5+ Rh7 37. Qe8+ Kg7 38. Qe7+ Kg8 39. Qe8+ Kg7 40. Qe7+ Kg8 41. Qe8+ Kg7 $11) (33... Qc2 $142 34. Qxc2 fxe1=Q 35. Bf6 {[#]} Rxf6 $1 {[%mdl 512]} 36. exf6 Qxh4+ 37. Kg2 Qe4+ 38. Qxe4 dxe4 39. Kg1 Kf7 40. Kf2 Bd5 41. Ke3 Kxf6 42. Kd2 Kg5 43. Ke3 Kf5 44. Kd2 Kf4 45. Ke2 e3 46. Ke1 Kf3 47. Kf1 e2+ 48. Ke1 Be4 49. d5 exd5 50. Kd2 Kf2 51. Kc1 e1=Q+ 52. Kb2 Qb4+ 53. Kc1 Qc3+ 54. Kd1 Bf3#) 34. Kh1 {[%emt 0:04:10] Threatening mate with Bf6+.} Ng3+ $1 {[%emt 0:00:19]} ({And not} 34... Rxg7 35. Qe8+ Kh7 36. Qh5+ Kg8 37. Qe8+ Kh7 38. Qh5+ Kg8 39. Qe8+ $11) 35. Qxg3 {[%emt 0:02:40] White threatens Bf6+ and mate.} Rxg7 {[%emt 0:00:13]} 36. Qh3 {[%emt 0:00:09]} Bc8 {[%emt 0:05:30]} 37. h5 {[%emt 0:01:36]} Qxd4 {[%emt 0:00:32]} 38. h6 {[%emt 0:01:18]} Rg4 {[%emt 0:00:34]} (38... Rg5 $142 39. h7+ Kh8 40. Rf1 Qe4+ 41. Kh2 Qxe5+ 42. Kh1 Qe4+ 43. Kh2 Qe2+ 44. Kh1 Rh5 45. Rf8+ Kxh7 46. Qxh5+ Qxh5+ 47. Kg1 Bb7 48. Kf2 d4 49. Ke1 d3 50. Kd2 Qh6+ 51. Kxd3 Qxf8 52. Ke2 Qf4 53. Ke1 Qe3+ 54. Kd1 Qf2 55. Kc1 Be4 56. Kd1 Bf5 57. Kc1 Qc2#) 39. h7+ {[%emt 0:00:58]} Kh8 {[%emt 0:00:07] Black mates.} 40. Rf1 {[%emt 0:01:14]} Rh4 {[%emt 0:01:02]} 41. Rf8+ {[%emt 0:15:40]} Kxh7 {[%emt 0:15:09] Weighted Error Value: White=0.98/Black=0.69} 0-1

[Event "GER-ch Youth-ODJM 2022"]
[Site "Willingen"]
[Date "2022.06.05"]
[Round "2.20"]
[White "Scherer, Josua"]
[Black "Dornieden, Jonas"]
[Result "1/2-1/2"]
[ECO "A12"]
[WhiteElo "1775"]
[BlackElo "2072"]
[Annotator "TA"]
[PlyCount "117"]
[EventDate "2022.06.05"]
[EventType "swiss"]
[EventRounds "9"]
[EventCountry "GER"]
[SourceTitle "playchess.com"]
[Source "ChessBase"]
[SourceQuality "1"]
[TimeControl "40/4500+30:900+30"]

{[%evp 15,117,0,-1,-10,-18,-10,-3,-7,29,0,31,15,49,27,62,54,60,57,61,0,35,32,29,0,6,-56,14,-7,0,-56,-54,-54,94,92,102,95,85,97,95,90,119,106,148,54,112,110,110,108,107,-16,-16,-51,-50,-79,-68,-66,-8,-8,-8,-8,-8,-8,-8,-8,-8,-8,0,0,0,-8,-8,-8,-8,-9,0,0,0,0,0,0,0,-80,0,-8,0,-35,-35,-35,-35,-40,-8,-8,0,-5,-4,-35,0,0,0,0,0,0,0,0]} 1. c4 {[%emt 0:00:00]} c6 {[%emt 0:00:00]} 2. g3 {[%emt 0:00:00]} d5 {[%emt 0:00:00]} 3. Nf3 {[%emt 0:00:00]} Nf6 {[%emt 0:00:00]} 4. b3 {[%emt 0:00:00]} Bf5 {[%emt 0:00:00]} 5. Bb2 {[%emt 0:00:00]} e6 {[%emt 0:00:00]} 6. Bg2 {[%emt 0:00:00]} h6 {[%emt 0:00:00]} 7. O-O {[%emt 0:00:00]} Be7 {[%emt 0:00:00]} 8. d3 {[%emt 0:00:00]} O-O {[%emt 0:00:00]} 9. Re1 {[%emt 0:00:00] [#] A12: English Opening: 1...c6 with b3 by White.} Qb6 $146 {[%emt 0:00:00]} ({Predecessor:} 9... Bh7 10. Nbd2 Nbd7 11. Rc1 Re8 12. Rc2 Qa5 13. Qc1 Bf8 14. a3 Qb6 15. b4 a5 16. c5 Qc7 17. e4 dxe4 18. dxe4 axb4 19. axb4 {½-½ (54) Ponkratov,P (2608)-Goryachkina,A (2478) Khanty-Mansiysk 2017}) 10. Qc2 {[%emt 0:00:00]} Bh7 {[%emt 0:16:52]} 11. Nbd2 {[%emt 0:00:00]} Na6 {[%emt 0:06:45]} 12. Ne5 {[%emt 0:14:04]} Rfd8 {[%emt 0:05:00]} (12... Nb4 $5 {[%cal Rb4c2]} 13. Qc1 a5 $14) 13. a3 {[%emt 0:04:04][%cal Ba2a3,Ba3a4][%mdl 32]} Rac8 {[%emt 0:14:23]} 14. b4 {[%emt 0:05:45][%cal Bb3b4,Bb4b5][%mdl 32]} c5 {[%emt 0:03:52]} 15. b5 {[%emt 0:02:35]} Nb8 {[%emt 0:01:01]} 16. a4 {[%emt 0:06:32]} Qc7 {[%emt 0:01:31]} 17. Qb3 {[%emt 0:04:07]} (17. a5 $14) 17... Nbd7 {[%emt 0:02:38]} (17... d4 $5 {[%cal Rc7e5]} 18. Ndf3 Nbd7 19. Nxd7 Qxd7 $11) 18. Nxd7 {[%emt 0:02:45]} Qxd7 {[%emt 0:00:24]} 19. cxd5 {[%emt 0:05:02]} exd5 {[%emt 0:03:56]} 20. Nf3 {[%emt 0:02:30]} (20. Rad1 $11) 20... Qe6 {[%emt 0:02:54]} (20... c4 $15 21. dxc4 dxc4) 21. Rad1 {[%emt 0:07:25]} Bf8 {[%emt 0:07:32]} 22. Ne5 {[%emt 0:07:38]} (22. Bc3 $11) 22... Bd6 $15 {[%emt 0:06:41]} 23. e4 {[%emt 0:06:01][%cal Re4d5]} dxe4 {[%emt 0:08:27]} ({Don't play} 23... Bxe5 24. exd5 Qd7 25. Rxe5 $16) (23... c4 $1 $15 {keeps the upper hand.} 24. dxc4 dxe4) 24. Qxe6 $16 {[%emt 0:00:09]} fxe6 {[%emt 0:00:03]} 25. dxe4 {[%emt 0:00:45]} Bxe5 {[%emt 0:03:40]} 26. Bxe5 {[%emt 0:09:53]} Kf7 {[%emt 0:00:45]} 27. f3 Nd7 {[%emt 0:01:21]} 28. Bc3 {[%emt 0:04:43] White is much more active.} Nb6 {[%emt 0:00:51] [#]} 29. Ba5 {[%emt 0:03:02] A strong pair of Bishops.} (29. a5 $1 $16 {[%cal Ra5b6]} Na4 30. Be5) 29... Ke7 {[%emt 0:00:10]} ({Black should try} 29... Rd4 $14) 30. Rxd8 {[%emt 0:01:41]} Rxd8 {[%emt 0:00:11]} 31. Rc1 {[%emt 0:00:34]} Rc8 {[%emt 0:00:17]} 32. Bxb6 {[%emt 0:00:55]} (32. Kf2 $16) 32... axb6 {[%emt 0:00:03][%mdl 4096] Endgame KRB-KRB} 33. e5 {[%emt 0:01:04]} Ra8 {[%emt 0:01:30]} 34. f4 {[%emt 0:00:30]} Rxa4 {[%emt 0:00:30]} 35. Bxb7 {[%emt 0:00:24]} Rb4 {[%emt 0:00:43]} ({Better is} 35... Bd3 $15) 36. Bc6 $11 {[%emt 0:00:25]} Bd3 {[%emt 0:00:39]} 37. Rd1 {[%emt 0:00:30]} Bxb5 {[%emt 0:00:32]} 38. Rd7+ $1 {[%emt 0:00:29]} Kf8 {[%emt 0:00:26]} 39. Rd8+ {[%emt 0:00:11]} Kf7 {[%emt 0:00:36]} 40. Rd7+ $1 {[%emt 0:00:27]} Kf8 {[%emt 0:00:25]} 41. Rd8+ $1 {[%emt 0:00:00]} Ke7 {[%emt 0:00:00]} 42. Rd7+ {[%emt 0:00:00]} Ke8 {[%emt 0:00:00]} 43. Bxb5 {[%emt 0:00:00]} Rxb5 {[%emt 0:00:00]} 44. Rxg7 {[%emt 0:00:00] KR-KR} c4 {[%emt 0:00:00] White must now prevent ...c3.} 45. Rc7 $1 {[%emt 0:01:29]} Rb1+ {[%emt 0:01:03]} (45... Rc5 $2 46. Rxc5 bxc5 47. Kf2 $18) 46. Kf2 {[%emt 0:00:05]} b5 {[%emt 0:00:04]} 47. Rc5 {[%emt 0:00:49]} Rb3 {[%emt 0:01:15]} 48. Ke2 {[%emt 0:02:20] [#]} (48. g4 $11) 48... c3 {[%emt 0:01:19]} (48... h5 $1 $17) 49. Kd3 {[%emt 0:02:44]} b4 {[%emt 0:00:20]} 50. Kc2 {[%emt 0:04:59]} Rb2+ {[%emt 0:00:05]} 51. Kc1 {[%emt 0:00:10]} Rxh2 {[%emt 0:00:34] And now ...h5 would win.} 52. Rc4 $1 {[%emt 0:02:09]} Rb2 {[%emt 0:00:33] aiming for ...h5.} 53. g4 {[%emt 0:00:23]} Kd7 {[%emt 0:10:16]} 54. f5 {[%emt 0:03:26]} exf5 {[%emt 0:02:10]} 55. gxf5 {[%emt 0:00:01]} Rf2 {[%emt 0:03:54]} (55... h5 $5 {[%cal Rb4b3]} 56. e6+ Kd6 57. Rd4+ Kc5 $17) 56. Rxb4 {[%emt 0:04:39] The position is equal.} Rxf5 {[%emt 0:00:06]} 57. Kc2 {[%emt 0:01:03]} Rxe5 {Strongly threatening ...Rc5.} 58. Kxc3 {[%emt 0:00:25]} h5 {[%emt 0:00:57]} 59. Kd3 {[%emt 0:00:14] Weighted Error Value: White=0.18 (very precise) /Black=0.18 (very precise)} 1/2-1/2

[Event "GER-ch Youth-ODJM 2022"]
[Site "Willingen"]
[Date "2022.06.05"]
[Round "2.21"]
[White "Schulz, Jannis"]
[Black "Frohnhaeuser, Simon"]
[Result "1/2-1/2"]
[ECO "D04"]
[WhiteElo "1810"]
[BlackElo "1939"]
[Annotator "TA"]
[PlyCount "98"]
[EventDate "2022.06.05"]
[EventType "swiss"]
[EventRounds "9"]
[EventCountry "GER"]
[SourceTitle "playchess.com"]
[Source "ChessBase"]
[SourceQuality "1"]
[TimeControl "40/4500+30:900+30"]

{[%evp 11,98,-17,-19,-16,-1,0,7,-23,0,0,0,-15,-24,-17,-21,-15,-25,-18,-20,-32,-24,-23,-23,-15,7,-28,-32,-27,-15,-23,0,-5,-9,-36,-33,-52,-35,-33,-19,-85,-28,-63,-16,-27,-25,-20,-24,-22,-27,-54,0,-5,0,0,-5,-3,0,0,0,-10,14,14,16,0,0,0,0,0,8,8,8,8,8,8,8,0,0,0,0,0,0,0,0,0,0,0,0,0,0]} 1. d4 {[%emt 0:00:00]} Nf6 {[%emt 0:00:00]} 2. Nf3 {[%emt 0:00:00]} d5 {[%emt 0:00:00]} 3. e3 {[%emt 0:00:00]} c5 {[%emt 0:00:00]} 4. c3 {[%emt 0:00:00]} Nc6 {[%emt 0:00:00]} 5. Bd3 {[%emt 0:00:00]} Bg4 {[%emt 0:00:00]} 6. Nbd2 {[%emt 0:00:00]} e6 {[%emt 0:00:00]} 7. O-O {[%emt 0:00:00] D05: Colle System with ...e6.} Be7 {[%emt 0:00:00]} 8. h3 {[%emt 0:00:00]} Bh5 {[%emt 0:00:00]} 9. Be2 {[%emt 0:08:17] [#]} cxd4 $146 {[%emt 0:04:38]} ({Predecessor:} 9... O-O 10. Ne5 Bxe2 11. Qxe2 Rc8 12. Ndf3 Nd7 13. Nxc6 Rxc6 14. e4 dxe4 15. Qxe4 Qb6 {1-0 (44) Kiseleva,A (2024)-Flores Quillas,D (2245) Chess.com INT 2020}) 10. exd4 {[%emt 0:01:33]} Qc7 {[%emt 0:08:31]} 11. Re1 {[%emt 0:01:26]} (11. Ne5 $5 {[%cal Re2h5]} Bxe2 12. Qxe2 $11) 11... O-O {[%emt 0:00:08]} 12. Nh4 {[%emt 0:02:45]} Bxe2 {[%emt 0:03:10]} 13. Qxe2 {[%emt 0:01:25]} Bd6 {[%emt 0:00:20]} 14. Nhf3 {[%emt 0:01:13]} Rac8 {[%emt 0:06:42]} 15. Nf1 {[%emt 0:02:20]} Ne4 {[%emt 0:02:14]} 16. Ng5 {[%emt 0:00:48]} Nxg5 {[%emt 0:05:56]} 17. Bxg5 {[%emt 0:00:30]} Bf4 {[%emt 0:02:03]} 18. Qg4 {[%emt 0:03:11]} Bxg5 {[%emt 0:01:09]} 19. Qxg5 {[%emt 0:00:06]} b5 {[%emt 0:00:21]} 20. Ng3 {[%emt 0:02:57]} Qe7 {[%emt 0:01:26]} 21. Qg4 {[%emt 0:03:10]} Qf6 {[%emt 0:00:17]} 22. f4 {[%emt 0:03:35]} g6 {[%emt 0:15:25] Prevents f5.} 23. a3 {[%emt 0:12:45]} a5 {[%emt 0:02:32]} 24. Rf1 {[%emt 0:03:00]} Ne7 {[%emt 0:06:11] Prevents f5.} 25. Rf2 {[%emt 0:07:34]} (25. Nh5 $11 Qf5 26. Qh4) 25... Kh8 {[%emt 0:02:58]} ({Better is} 25... b4 $17 26. axb4 axb4) 26. Qf3 {[%emt 0:04:25]} Nc6 {[%emt 0:10:52]} (26... b4 $15) 27. Ne2 $11 {[%emt 0:01:46]} b4 {[%emt 0:04:17]} 28. axb4 {[%emt 0:01:17]} axb4 {[%emt 0:00:05]} 29. Ra6 {[%emt 0:00:56][%cal Ba1a6,Ba6b6,Bb6b7][%mdl 32]} Qf5 {[%emt 0:01:23] aiming for ...Qb1+.} 30. Kh2 {[%emt 0:01:57]} Nb8 {[%emt 0:01:11]} ({Black should play} 30... Kg8 $15) 31. Rb6 {[%emt 0:01:35] The position is equal.} bxc3 {[%emt 0:00:11]} 32. bxc3 {[%emt 0:02:00]} Nd7 {[%emt 0:01:10]} 33. Rb7 {[%emt 0:01:38]} Rfd8 {[%emt 0:01:42]} 34. g4 {[%emt 0:02:06]} Qf6 {[%emt 0:02:00]} 35. f5 {[%emt 0:01:54]} Rb8 {[%emt 0:04:56]} 36. Rxb8 {[%emt 0:03:26]} Rxb8 {[%emt 0:00:04]} 37. Nf4 {[%emt 0:03:00]} gxf5 {[%emt 0:00:18]} 38. Nh5 {[%emt 0:01:13][%csl LRf5,LRf6]} Qg5 {[%emt 0:00:54]} 39. gxf5 {[%emt 0:00:34]} Rg8 {[%emt 0:00:14][%csl Gg8][%cal Rg5g1] [#]} 40. Rg2 {[%emt 0:02:32] Against Qg1+} Qxg2+ {[%emt 0:01:00]} (40... Qc1 {is interesting.} 41. Nf4 Rxg2+ 42. Nxg2 Qh6) 41. Qxg2 {[%emt 0:15:06]} Rxg2+ {[%emt 0:15:04]} 42. Kxg2 {[%emt 0:00:03][%mdl 4096] Endgame KN-KN} Kg8 {[%emt 0:00:00]} 43. Kf3 {[%emt 0:00:00]} Kf8 {[%emt 0:00:00]} 44. Kg4 {[%emt 0:00:00]} h6 {[%emt 0:00:00]} 45. Ng3 {[%emt 0:00:00]} Nf6+ {[%emt 0:00:00]} 46. Kf4 {[%emt 0:00:00]} Ke7 {[%emt 0:00:00]} 47. fxe6 {[%emt 0:00:00]} fxe6 {[%emt 0:00:00]} 48. h4 {[%emt 0:00:00]} Kf7 {[%emt 0:00:00]} 49. Ke5 {[%emt 0:00:00]} Ke7 {[%emt 0:00:00] Weighted Error Value: White=0.10 (very precise) /Black=0.08 (flawless)} 1/2-1/2